[Event "FIDE Women World Blitz 2021"]
[Site "Warsaw"]
[Date "2021.12.30"]
[Round "15.35"]
[White "Kurmangaliyeva, Liya"]
[Black "Doluhanova, Evgeniya"]
[Result "1/2-1/2"]
[ECO "C67"]
[WhiteElo "2222"]
[BlackElo "2237"]
[Annotator "NA"]
[PlyCount "154"]
[EventDate "2021.12.29"]
[EventType "swiss"]
[EventCountry "POL"]
[Tiebreak "Cut1 Buchholz"]
[SourceTitle "playchess.com"]
[Source "ChessBase"]
[SourceQuality "1"]
[TimeControl "180+2"]

1. e4 {[%emt 0:00:06]} e5 {[%emt 0:00:04]} 2. Nf3 {[%emt 0:00:01]} Nc6 {
[%emt 0:00:01]} 3. Bb5 {[%emt 0:00:01]} Nf6 {[%emt 0:00:01]} 4. O-O {[%emt 0:
00:03]} Nxe4 {[%emt 0:00:02]} 5. Re1 {[%emt 0:00:02]} Nd6 {[%emt 0:00:01]} 6.
Nxe5 {[%emt 0:00:01]} Be7 {[%emt 0:00:07]} 7. Bf1 {[%emt 0:00:02]} Nf5 {
[%emt 0:00:19]} 8. d4 {[%emt 0:00:25]} Nfxd4 {[%emt 0:00:21]} 9. c3 {[%emt 0:
00:04]} Ne6 {[%emt 0:00:12]} 10. Bd3 {[%emt 0:00:19]} Nxe5 {[%emt 0:00:15]} 11.
Rxe5 {[%emt 0:00:02]} Bf6 {[%emt 0:00:06]} 12. Rh5 {[%emt 0:00:19]} g6 {
[%emt 0:00:09]} 13. Rh3 {[%emt 0:00:02]} d6 {[%emt 0:00:12]} 14. Bh6 {[%emt 0:
00:06]} Bg5 {[%emt 0:00:20]} 15. Bxg5 {[%emt 0:00:16]} Qxg5 {[%emt 0:00:03]}
16. Rg3 {[%emt 0:00:06]} Qf6 {[%emt 0:00:12]} 17. Nd2 {[%emt 0:00:03]} Bd7 {
[%emt 0:00:06]} 18. Ne4 {[%emt 0:00:01]} Qe7 {[%emt 0:00:02]} 19. Qf3 {[%emt 0:
00:13]} f5 {[%emt 0:00:09]} 20. Nd2 {[%emt 0:00:06]} Bc6 {[%emt 0:00:05]} 21.
Qd1 {[%emt 0:00:17]} O-O-O {[%emt 0:00:07]} 22. Re3 {[%emt 0:00:04]} Qf6 {
[%emt 0:00:03]} 23. Nc4 {[%emt 0:00:04]} Nc5 {[%emt 0:00:03]} 24. Na5 {[%emt 0:
00:06]} Nxd3 {[%emt 0:00:05]} 25. Qxd3 {[%emt 0:00:03]} Be4 {[%emt 0:00:07]}
26. Qb5 {[%emt 0:00:11]} a6 {[%emt 0:00:11]} 27. Qb4 {[%emt 0:00:03]} b6 {
[%emt 0:00:16]} 28. Nc4 {[%emt 0:00:01]} a5 {[%emt 0:00:02]} 29. Qb5 {[%emt 0:
00:02]} Rhe8 {[%emt 0:00:02]} 30. b4 {[%emt 0:00:10]} axb4 {[%emt 0:00:04]} 31.
Qxb4 {[%emt 0:00:03]} f4 {[%emt 0:00:02]} 32. Rxe4 {[%emt 0:00:08]} Rxe4 {
[%emt 0:00:07]} 33. Nxb6+ {[%emt 0:00:01]} Kb8 {[%emt 0:00:01]} 34. Qxe4 {
[%emt 0:00:02]} cxb6 {[%emt 0:00:01]} 35. Rb1 {[%emt 0:00:01]} d5 {[%emt 0:00:
04]} 36. Qb4 {[%emt 0:00:06]} Rd6 {[%emt 0:00:02]} 37. a4 {[%emt 0:00:02]} Kc7
{[%emt 0:00:06]} 38. a5 {[%emt 0:00:01]} Rc6 {[%emt 0:00:02]} 39. axb6+ {
[%emt 0:00:04]} Rxb6 {[%emt 0:00:02]} 40. Qc5+ {[%emt 0:00:01]} Rc6 {[%emt 0:
00:01]} 41. Qa7+ {[%emt 0:00:02]} Kd6 {[%emt 0:00:01]} 42. Qb8+ {[%emt 0:00:01]
} Ke6 {[%emt 0:00:02]} 43. Re1+ {[%emt 0:00:03]} Kf5 {[%emt 0:00:01]} 44. Qb1+
{[%emt 0:00:06]} Kg5 {[%emt 0:00:02]} 45. Qd3 {[%emt 0:00:03]} Rxc3 {[%emt 0:
00:02]} 46. Qxd5+ {[%emt 0:00:02]} Kh6 {[%emt 0:00:01]} 47. Qe4 {[%emt 0:00:06]
} Rc5 {[%emt 0:00:02]} 48. h3 {[%emt 0:00:02]} Rf5 {[%emt 0:00:01]} 49. Qf3 {
[%emt 0:00:01]} Qg5 {[%emt 0:00:01]} 50. Re4 {[%emt 0:00:02]} Rf6 {[%emt 0:00:
03]} 51. Kh2 {[%emt 0:00:01]} Rf5 {[%emt 0:00:01]} 52. Re6 {[%emt 0:00:02]} Rf6
{[%emt 0:00:01]} 53. Re8 {[%emt 0:00:01]} Rf7 {[%emt 0:00:03]} 54. Qb3 {
[%emt 0:00:04]} Qf6 {[%emt 0:00:02]} 55. Re6 {[%emt 0:00:02]} Qf5 {[%emt 0:00:
02]} 56. f3 {[%emt 0:00:16]} Qg5 {[%emt 0:00:04]} 57. Re2 {[%emt 0:00:01]} Qg3+
{[%emt 0:00:00]} 58. Kh1 {[%emt 0:00:02]} Ra7 {[%emt 0:00:01]} 59. Qd1 {
[%emt 0:00:01]} Rb7 {[%emt 0:00:03]} 60. Qe1 {[%emt 0:00:02]} Qxe1+ {[%emt 0:
00:03]} 61. Rxe1 {[%emt 0:00:01]} Kg5 {[%emt 0:00:02]} 62. Kh2 {[%emt 0:00:01]}
Rb5 {[%emt 0:00:01]} 63. Re4 {[%emt 0:00:01]} h6 {[%emt 0:00:02]} 64. Rd4 {
[%emt 0:00:01]} Kf5 {[%emt 0:00:01]} 65. Re4 {[%emt 0:00:01]} g5 {[%emt 0:00:
02]} 66. Re2 {[%emt 0:00:03]} h5 {[%emt 0:00:01]} 67. Ra2 {[%emt 0:00:01]} g4 {
[%emt 0:00:03]} 68. hxg4+ {[%emt 0:00:01]} hxg4 {[%emt 0:00:02]} 69. fxg4+ {
[%emt 0:00:01]} Kxg4 {[%emt 0:00:02]} 70. Ra8 {[%emt 0:00:01]} Rh5+ {[%emt 0:
00:04]} 71. Kg1 {[%emt 0:00:01]} Rg5 {[%emt 0:00:01]} 72. Ra4 {[%emt 0:00:02]}
Rd5 {[%emt 0:00:05]} 73. Ra8 {[%emt 0:00:02]} Re5 {[%emt 0:00:04]} 74. Rg8+ {
[%emt 0:00:01]} Kf5 {[%emt 0:00:01]} 75. Rf8+ {[%emt 0:00:02]} Ke4 {[%emt 0:00:
01]} 76. Kf2 {[%emt 0:00:01]} Re6 {[%emt 0:00:02]} 77. Rf7 {[%emt 0:00:02]} Re5
{[%emt 0:00:01]} 1/2-1/2

[Event "FIDE Women World Blitz 2021"]
[Site "Warsaw"]
[Date "2021.12.30"]
[Round "15.36"]
[White "Mammadova, Gulnar"]
[Black "Malicka, Maria"]
[Result "1-0"]
[ECO "B51"]
[WhiteElo "2395"]
[BlackElo "2307"]
[Annotator "NA"]
[PlyCount "63"]
[EventDate "2021.12.29"]
[EventType "swiss"]
[EventCountry "POL"]
[Tiebreak "Cut1 Buchholz"]
[SourceTitle "playchess.com"]
[Source "ChessBase"]
[SourceQuality "1"]
[TimeControl "180+2"]

1. e4 {[%emt 0:00:01]} c5 {[%emt 0:00:00]} 2. Nf3 {[%emt 0:00:01]} d6 {[%emt 0:
00:03]} 3. Bb5+ {[%emt 0:00:02]} Nd7 {[%emt 0:00:02]} 4. a4 {[%emt 0:00:00]} a6
{[%emt 0:00:06]} 5. Bc4 {[%emt 0:00:01]} Ngf6 {[%emt 0:00:03]} 6. Nc3 {[%emt 0:
00:01]} e6 {[%emt 0:00:03]} 7. d4 {[%emt 0:00:01]} Be7 {[%emt 0:00:06]} 8. e5 {
[%emt 0:00:16]} dxe5 {[%emt 0:00:32]} 9. dxe5 {[%emt 0:00:00]} Ng4 {[%emt 0:00:
02]} 10. Qe2 {[%emt 0:00:01]} Qc7 {[%emt 0:00:23]} 11. Bf4 {[%emt 0:00:02]} h5
{[%emt 0:00:23]} 12. h3 {[%emt 0:00:15]} Nh6 {[%emt 0:00:01]} 13. Ne4 {[%emt 0:
00:02]} Nf5 {[%emt 0:00:03]} 14. c3 {[%emt 0:00:01]} b6 {[%emt 0:00:07]} 15.
Rd1 {[%emt 0:00:07]} Bb7 {[%emt 0:00:12]} 16. Nd6+ {[%emt 0:00:03]} Bxd6 {
[%emt 0:00:39]} 17. exd6 {[%emt 0:00:01]} Bxf3 {[%emt 0:00:08]} 18. gxf3 {
[%emt 0:00:11]} Qc6 {[%emt 0:00:16]} 19. Bd5 {[%emt 0:00:03]} Qc8 {[%emt 0:00:
03]} 20. Bxe6 {[%emt 0:00:20]} fxe6 {[%emt 0:00:13]} 21. Qxe6+ {[%emt 0:00:01]}
Kf8 {[%emt 0:00:01]} 22. Qxf5+ {[%emt 0:00:04]} Kg8 {[%emt 0:00:08]} 23. Qe6+ {
[%emt 0:00:04]} Kh7 {[%emt 0:00:02]} 24. Qf5+ {[%emt 0:00:07]} Kg8 {[%emt 0:00:
05]} 25. Qd5+ {[%emt 0:00:00]} Kh7 {[%emt 0:00:01]} 26. Qxh5+ {[%emt 0:00:02]}
Kg8 {[%emt 0:00:01]} 27. Qd5+ {[%emt 0:00:03]} Kf8 {[%emt 0:00:02]} 28. Bg5 {
[%emt 0:00:05]} Nf6 {[%emt 0:00:03]} 29. Bxf6 {[%emt 0:00:06]} gxf6 {[%emt 0:
00:01]} 30. d7 {[%emt 0:00:01]} Qd8 {[%emt 0:00:02]} 31. Qxa8 {[%emt 0:00:05]}
Qxa8 {[%emt 0:00:08]} 32. d8=Q+ {[%emt 0:00:02]} 1-0

[Event "FIDE Women World Blitz 2021"]
[Site "Warsaw"]
[Date "2021.12.30"]
[Round "15.37"]
[White "Goraj, Barbara"]
[Black "Yakimova, Mariya"]
[Result "0-1"]
[ECO "E90"]
[WhiteElo "1902"]
[BlackElo "2219"]
[Annotator "NA"]
[PlyCount "158"]
[EventDate "2021.12.29"]
[EventType "swiss"]
[EventCountry "POL"]
[Tiebreak "Cut1 Buchholz"]
[SourceTitle "playchess.com"]
[Source "ChessBase"]
[SourceQuality "1"]
[TimeControl "180+2"]

1. Nf3 {[%emt 0:00:01]} Nf6 {[%emt 0:00:01]} 2. c4 {[%emt 0:00:01]} g6 {
[%emt 0:00:01]} 3. Nc3 {[%emt 0:00:02]} Bg7 {[%emt 0:00:01]} 4. e4 {[%emt 0:00:
02]} d6 {[%emt 0:00:01]} 5. d4 {[%emt 0:00:01]} O-O {[%emt 0:00:02]} 6. h3 {
[%emt 0:00:01]} e5 {[%emt 0:00:05]} 7. d5 {[%emt 0:00:01]} Nh5 {[%emt 0:00:11]}
8. Be3 {[%emt 0:00:38]} Na6 {[%emt 0:00:09]} 9. Qc2 {[%emt 0:00:29]} f5 {
[%emt 0:00:02]} 10. O-O-O {[%emt 0:00:16]} Nc5 {[%emt 0:00:11]} 11. Bxc5 {
[%emt 0:00:12]} dxc5 {[%emt 0:00:03]} 12. Kb1 {[%emt 0:00:10]} Qe7 {[%emt 0:00:
17]} 13. Ne1 {[%emt 0:00:08]} Bd7 {[%emt 0:00:13]} 14. Be2 {[%emt 0:00:13]} Nf6
{[%emt 0:00:23]} 15. Bd3 {[%emt 0:00:04]} f4 {[%emt 0:00:07]} 16. Nf3 {[%emt 0:
00:07]} a6 {[%emt 0:00:04]} 17. Ka1 {[%emt 0:00:09]} Rab8 {[%emt 0:00:01]} 18.
Nd2 {[%emt 0:00:13]} b5 {[%emt 0:00:05]} 19. Nb3 {[%emt 0:00:04]} Kh8 {[%emt 0:
00:07]} 20. f3 {[%emt 0:00:01]} Rfd8 {[%emt 0:00:19]} 21. Qf2 {[%emt 0:00:01]}
Bf8 {[%emt 0:00:02]} 22. Qe2 {[%emt 0:00:05]} Nh5 {[%emt 0:00:03]} 23. Rhe1 {
[%emt 0:00:03]} Ng3 {[%emt 0:00:01]} 24. Qf2 {[%emt 0:00:03]} Qd6 {[%emt 0:00:
03]} 25. Rc1 {[%emt 0:00:09]} Rb6 {[%emt 0:00:04]} 26. Nb1 {[%emt 0:00:07]} b4
{[%emt 0:00:03]} 27. Na5 {[%emt 0:00:05]} Ra8 {[%emt 0:00:05]} 28. Nd2 {
[%emt 0:00:02]} Rbb8 {[%emt 0:00:09]} 29. Ndb3 {[%emt 0:00:09]} Ba4 {[%emt 0:
00:01]} 30. Kb1 {[%emt 0:00:18]} Bxb3 {[%emt 0:00:01]} 31. axb3 {[%emt 0:00:02]
} Re8 {[%emt 0:00:18]} 32. Kc2 {[%emt 0:00:01]} Qb6 {[%emt 0:00:01]} 33. Ra1 {
[%emt 0:00:01]} Bd6 {[%emt 0:00:04]} 34. Ra2 {[%emt 0:00:02]} Kg7 {[%emt 0:00:
03]} 35. Rea1 {[%emt 0:00:01]} g5 {[%emt 0:00:01]} 36. Qe1 {[%emt 0:00:04]} h5
{[%emt 0:00:03]} 37. Nc6 {[%emt 0:00:04]} Kf6 {[%emt 0:00:02]} 38. Ra5 {
[%emt 0:00:02]} Rg8 {[%emt 0:00:08]} 39. Qb1 {[%emt 0:00:02]} g4 {[%emt 0:00:
01]} 40. Qa2 {[%emt 0:00:03]} gxf3 {[%emt 0:00:07]} 41. gxf3 {[%emt 0:00:01]}
h4 {[%emt 0:00:15]} 42. Rxa6 {[%emt 0:00:01]} Rxa6 {[%emt 0:00:01]} 43. Qxa6 {
[%emt 0:00:03]} Nh5 {[%emt 0:00:03]} 44. Qxb6 {[%emt 0:00:02]} cxb6 {[%emt 0:
00:01]} 45. Ra6 {[%emt 0:00:02]} Rg2+ {[%emt 0:00:07]} 46. Kb1 {[%emt 0:00:04]}
Rg1+ {[%emt 0:00:09]} 47. Kc2 {[%emt 0:00:02]} Rg2+ {[%emt 0:00:01]} 48. Kc1 {
[%emt 0:00:01]} Rh2 {[%emt 0:00:06]} 49. Rxb6 {[%emt 0:00:03]} Rxh3 50. Nd8 {
[%emt 0:00:03]} Ke7 {[%emt 0:00:03]} 51. Ne6 {[%emt 0:00:02]} Ng3 {[%emt 0:00:
04]} 52. Rb7+ {[%emt 0:00:00]} Kf6 {[%emt 0:00:01]} 53. Nd8 {[%emt 0:00:03]}
Rh1+ {[%emt 0:00:01]} 54. Kd2 {[%emt 0:00:02]} h3 {[%emt 0:00:01]} 55. Rh7 {
[%emt 0:00:02]} h2 {[%emt 0:00:01]} 56. Ne6 {[%emt 0:00:02]} Kg6 {[%emt 0:00:
04]} 57. Rg7+ {[%emt 0:00:02]} Kh6 {[%emt 0:00:01]} 58. Rg8 {[%emt 0:00:02]}
Rd1+ {[%emt 0:00:02]} 59. Kxd1 {[%emt 0:00:01]} h1=Q+ {[%emt 0:00:01]} 60. Kc2
{[%emt 0:00:01]} Qxf3 {[%emt 0:00:03]} 61. Rh8+ {[%emt 0:00:02]} Kg6 {[%emt 0:
00:02]} 62. Rg8+ {[%emt 0:00:02]} Kf6 {[%emt 0:00:02]} 63. Rh8 {[%emt 0:00:03]}
Nxe4 {[%emt 0:00:03]} 64. Rh6+ {[%emt 0:00:03]} Ke7 {[%emt 0:00:02]} 65. Rh7+ {
[%emt 0:00:01]} Ke8 {[%emt 0:00:02]} 66. Rh8+ {[%emt 0:00:01]} Kf7 {[%emt 0:00:
02]} 67. Rh7+ {[%emt 0:00:03]} Kg6 {[%emt 0:00:01]} 68. Rg7+ {[%emt 0:00:02]}
Kh5 {[%emt 0:00:02]} 69. Bxe4 {[%emt 0:00:03]} Qxe4+ {[%emt 0:00:01]} 70. Kc1 {
[%emt 0:00:01]} Qe3+ {[%emt 0:00:05]} 71. Kc2 {[%emt 0:00:01]} f3 {[%emt 0:00:
03]} 72. Rh7+ {[%emt 0:00:02]} Kg4 {[%emt 0:00:04]} 73. Rg7+ {[%emt 0:00:01]}
Kh3 {[%emt 0:00:01]} 74. Rh7+ {[%emt 0:00:03]} Kg2 {[%emt 0:00:01]} 75. Rg7+ {
[%emt 0:00:02]} Kf1 {[%emt 0:00:01]} 76. Ng5 {[%emt 0:00:02]} e4 {[%emt 0:00:
01]} 77. Nh3 {[%emt 0:00:03]} Bf4 {[%emt 0:00:02]} 78. Rg1+ {[%emt 0:00:05]}
Qxg1 {[%emt 0:00:03]} 79. Nxg1 {[%emt 0:00:00]} Kxg1 {[%emt 0:00:01]} 0-1

[Event "FIDE Women World Blitz 2021"]
[Site "Warsaw"]
[Date "2021.12.30"]
[Round "15.38"]
[White "Dylag, Emilia"]
[Black "Nur-Mukhametova, Alisa"]
[Result "1-0"]
[ECO "A62"]
[WhiteElo "1863"]
[BlackElo "2225"]
[Annotator "NA"]
[PlyCount "67"]
[EventDate "2021.12.29"]
[EventType "swiss"]
[EventCountry "POL"]
[Tiebreak "Cut1 Buchholz"]
[SourceTitle "playchess.com"]
[Source "ChessBase"]
[SourceQuality "1"]
[TimeControl "180+2"]

1. d4 {[%emt 0:00:01]} Nf6 {[%emt 0:00:01]} 2. c4 {[%emt 0:00:02]} e6 {[%emt 0:
00:18]} 3. Nc3 {[%emt 0:00:01]} c5 {[%emt 0:00:06]} 4. d5 {[%emt 0:00:01]} exd5
{[%emt 0:00:01]} 5. cxd5 {[%emt 0:00:01]} d6 {[%emt 0:00:01]} 6. Nf3 {[%emt 0:
00:08]} g6 {[%emt 0:00:01]} 7. g3 {[%emt 0:00:01]} Bg7 {[%emt 0:00:01]} 8. Bg2
{[%emt 0:00:01]} O-O {[%emt 0:00:02]} 9. O-O {[%emt 0:00:02]} Re8 {[%emt 0:00:
02]} 10. Bf4 {[%emt 0:00:25]} a6 {[%emt 0:00:27]} 11. a4 {[%emt 0:00:01]} Ne4 {
[%emt 0:00:10]} 12. Nxe4 {[%emt 0:00:12]} Rxe4 {[%emt 0:00:02]} 13. Nd2 {
[%emt 0:00:26]} Rb4 {[%emt 0:00:34]} 14. Rb1 {[%emt 0:00:31]} Bf5 {[%emt 0:00:
33]} 15. e4 {[%emt 0:00:05]} Bc8 {[%emt 0:00:08]} 16. Re1 {[%emt 0:00:24]} g5 {
[%emt 0:00:42]} 17. Be3 {[%emt 0:00:02]} Nd7 {[%emt 0:00:07]} 18. f4 {[%emt 0:
00:34]} gxf4 {[%emt 0:00:06]} 19. gxf4 {[%emt 0:00:01]} Nf6 {[%emt 0:00:09]}
20. h3 {[%emt 0:00:08]} Bd7 {[%emt 0:00:06]} 21. e5 {[%emt 0:00:03]} Ne8 {
[%emt 0:00:02]} 22. Qh5 {[%emt 0:00:04]} dxe5 {[%emt 0:00:03]} 23. fxe5 {
[%emt 0:00:02]} Qe7 {[%emt 0:00:02]} 24. Bg5 {[%emt 0:00:08]} f6 {[%emt 0:00:
03]} 25. exf6 {[%emt 0:00:02]} Nxf6 {[%emt 0:00:02]} 26. Rxe7 {[%emt 0:00:05]}
Nxh5 {[%emt 0:00:01]} 27. Rxd7 {[%emt 0:00:02]} Ng3 {[%emt 0:00:02]} 28. d6 {
[%emt 0:00:04]} Ne2+ {[%emt 0:00:01]} 29. Kf2 {[%emt 0:00:04]} Nd4 {[%emt 0:00:
02]} 30. Bd5+ {[%emt 0:00:02]} Kh8 {[%emt 0:00:01]} 31. Rxb7 {[%emt 0:00:07]}
Rf8+ {[%emt 0:00:03]} 32. Kg2 {[%emt 0:00:03]} h6 {[%emt 0:00:03]} 33. Rxb4 {
[%emt 0:00:03]} cxb4 {[%emt 0:00:02]} 34. Be7 {[%emt 0:00:02]} 1-0

[Event "FIDE Women World Blitz 2021"]
[Site "Warsaw"]
[Date "2021.12.30"]
[Round "15.39"]
[White "Szczotka, Klara"]
[Black "Smirnova, Ekaterina"]
[Result "1/2-1/2"]
[ECO "D10"]
[WhiteElo "1584"]
[BlackElo "2196"]
[Annotator "NA"]
[PlyCount "134"]
[EventDate "2021.12.29"]
[EventType "swiss"]
[EventCountry "POL"]
[Tiebreak "Cut1 Buchholz"]
[SourceTitle "playchess.com"]
[Source "ChessBase"]
[SourceQuality "1"]
[TimeControl "180+2"]

1. d4 {[%emt 0:00:01]} d5 {[%emt 0:00:00]} 2. c4 {[%emt 0:00:00]} c6 {[%emt 0:
00:01]} 3. cxd5 cxd5 {[%emt 0:00:00]} 4. Nc3 {[%emt 0:00:03]} Nf6 {[%emt 0:00:
04]} 5. Bg5 {[%emt 0:00:02]} e6 {[%emt 0:00:15]} 6. e3 {[%emt 0:00:02]} Nc6 {
[%emt 0:00:01]} 7. Bd3 {[%emt 0:00:03]} Be7 {[%emt 0:00:02]} 8. Nge2 {[%emt 0:
00:01]} h6 {[%emt 0:00:01]} 9. Bh4 {[%emt 0:00:01]} O-O {[%emt 0:00:06]} 10.
O-O {[%emt 0:00:03]} Bd7 {[%emt 0:00:02]} 11. a3 {[%emt 0:00:01]} Rc8 {[%emt 0:
00:01]} 12. Rc1 {[%emt 0:00:02]} Na5 {[%emt 0:00:09]} 13. Bg3 {[%emt 0:00:55]}
Nc4 {[%emt 0:00:04]} 14. Qc2 {[%emt 0:00:04]} a6 {[%emt 0:00:15]} 15. a4 {
[%emt 0:00:21]} Qb6 {[%emt 0:00:16]} 16. b3 {[%emt 0:00:44]} Na5 {[%emt 0:00:
06]} 17. Rb1 {[%emt 0:00:01]} Nc6 {[%emt 0:00:05]} 18. Qd2 {[%emt 0:00:11]} Nb4
{[%emt 0:00:05]} 19. Rfc1 {[%emt 0:00:08]} Rc6 {[%emt 0:00:26]} 20. Na2 {
[%emt 0:00:29]} Nxd3 {[%emt 0:00:07]} 21. Qxd3 {[%emt 0:00:01]} Rfc8 {[%emt 0:
00:02]} 22. Rxc6 {[%emt 0:00:07]} Rxc6 {[%emt 0:00:02]} 23. Rc1 {[%emt 0:00:02]
} Rxc1+ {[%emt 0:00:07]} 24. Naxc1 {[%emt 0:00:02]} Qc6 {[%emt 0:00:01]} 25.
Qc3 {[%emt 0:00:05]} Ne4 {[%emt 0:00:11]} 26. Qxc6 {[%emt 0:00:02]} Bxc6 {
[%emt 0:00:14]} 27. Bc7 {[%emt 0:00:05]} Kf8 {[%emt 0:00:15]} 28. f3 {[%emt 0:
00:02]} Nf6 {[%emt 0:00:13]} 29. Kf2 {[%emt 0:00:03]} Ke8 {[%emt 0:00:02]} 30.
Ba5 {[%emt 0:00:03]} Nd7 {[%emt 0:00:10]} 31. Nd3 {[%emt 0:00:04]} f6 {[%emt 0:
00:01]} 32. Nef4 {[%emt 0:00:04]} Kf7 {[%emt 0:00:02]} 33. Bb4 {[%emt 0:00:03]}
Bd8 {[%emt 0:00:06]} 34. Nc5 {[%emt 0:00:03]} Nxc5 {[%emt 0:00:04]} 35. Bxc5 {
[%emt 0:00:01]} e5 {[%emt 0:00:05]} 36. Nd3 {[%emt 0:00:02]} Ke6 {[%emt 0:00:
03]} 37. Bf8 {[%emt 0:00:03]} Kf7 {[%emt 0:00:01]} 38. Bd6 {[%emt 0:00:02]}
exd4 {[%emt 0:00:10]} 39. exd4 {[%emt 0:00:01]} g6 {[%emt 0:00:03]} 40. Ke3 {
[%emt 0:00:00]} Ke6 {[%emt 0:00:01]} 41. Bf8 {[%emt 0:00:02]} h5 {[%emt 0:00:
02]} 42. g4 {[%emt 0:00:01]} hxg4 {[%emt 0:00:01]} 43. fxg4 {[%emt 0:00:01]}
Bc7 {[%emt 0:00:02]} 44. h4 {[%emt 0:00:01]} Kf7 {[%emt 0:00:02]} 45. Bb4 {
[%emt 0:00:01]} Bd7 {[%emt 0:00:01]} 46. Kf3 {[%emt 0:00:02]} Kg7 {[%emt 0:00:
05]} 47. Nc5 {[%emt 0:00:01]} Bc8 {[%emt 0:00:02]} 48. Bd2 {[%emt 0:00:02]} Bb6
{[%emt 0:00:03]} 49. b4 {[%emt 0:00:06]} Bxc5 {[%emt 0:00:07]} 50. dxc5 {
[%emt 0:00:01]} Bd7 {[%emt 0:00:00]} 51. a5 {[%emt 0:00:03]} Bc6 {[%emt 0:00:
01]} 52. Ke3 {[%emt 0:00:03]} f5 {[%emt 0:00:03]} 53. gxf5 gxf5 {[%emt 0:00:01]
} 54. Kf4 {[%emt 0:00:02]} Kg6 {[%emt 0:00:01]} 55. Bc3 {[%emt 0:00:02]} Bd7 {
[%emt 0:00:03]} 56. Ke5 {[%emt 0:00:02]} Bc6 {[%emt 0:00:01]} 57. Bd2 {[%emt 0:
00:02]} d4 {[%emt 0:00:03]} 58. Kxd4 {[%emt 0:00:02]} Bg2 {[%emt 0:00:03]} 59.
Ke5 {[%emt 0:00:00]} Bf3 {[%emt 0:00:01]} 60. Bg5 {[%emt 0:00:02]} Bg2 {
[%emt 0:00:02]} 61. Kd6 {[%emt 0:00:04]} Kh5 {[%emt 0:00:01]} 62. Ke6 {[%emt 0:
00:03]} f4 {[%emt 0:00:02]} 63. Bxf4 {[%emt 0:00:02]} Kxh4 {[%emt 0:00:01]} 64.
Bc7 {[%emt 0:00:02]} Kg5 {[%emt 0:00:02]} 65. Ke5 {[%emt 0:00:05]} Kg6 {
[%emt 0:00:01]} 66. Kd4 {[%emt 0:00:02]} Kf7 {[%emt 0:00:01]} 67. Kc4 {[%emt 0:
00:00]} Ke6 {[%emt 0:00:01]} 1/2-1/2

[Event "FIDE Women World Blitz 2021"]
[Site "Warsaw"]
[Date "2021.12.30"]
[Round "16.1"]
[White "Goryachkina, Aleksandra"]
[Black "Assaubayeva, Bibisara"]
[Result "0-1"]
[ECO "A65"]
[WhiteElo "2604"]
[BlackElo "2400"]
[Annotator "ChessBase"]
[PlyCount "80"]
[EventDate "2021.12.29"]
[EventType "swiss"]
[EventCountry "POL"]
[Tiebreak "Cut1 Buchholz"]
[SourceTitle "playchess.com"]
[Source "ChessBase"]
[SourceQuality "1"]
[TimeControl "180+2"]

1. d4 {[%emt 0:00:01]} Nf6 {[%emt 0:00:00]} 2. c4 {[%emt 0:00:02]} g6 {[%emt 0:
00:01]} 3. Nc3 {[%emt 0:00:01]} Bg7 {[%emt 0:00:02]} 4. e4 {[%emt 0:00:02]} d6
{[%emt 0:00:00]} 5. f3 {[%emt 0:00:01]} O-O {[%emt 0:00:02]} 6. Be3 {[%emt 0:
00:02]} c5 {[%emt 0:00:01]} 7. Nge2 {[%emt 0:00:02]} Nc6 {[%emt 0:00:01]} 8. d5
{[%emt 0:00:02]} Ne5 {[%emt 0:00:01]} 9. Ng3 {[%emt 0:00:02]} e6 {[%emt 0:00:
02]} 10. Be2 {[%emt 0:00:04]} exd5 {[%emt 0:00:02]} 11. cxd5 {[%emt 0:00:01]}
a6 {[%emt 0:00:01]} 12. a4 {[%emt 0:00:05]} h5 {[%emt 0:00:05]} 13. O-O {
[%emt 0:00:06]} h4 {[%emt 0:00:04]} 14. Nh1 {[%emt 0:00:02]} h3 {[%emt 0:00:02]
} 15. g3 {[%emt 0:00:21]} Rb8 {[%emt 0:00:02]} 16. Nf2 {[%emt 0:00:12]} b5 {
[%emt 0:00:03]} 17. axb5 {[%emt 0:00:06]} axb5 {[%emt 0:00:01]} 18. Bxb5 {
[%emt 0:00:07]} Bd7 {[%emt 0:00:11]} 19. Bxd7 {[%emt 0:00:14]} Qxd7 {[%emt 0:
00:06]} 20. Qe2 {[%emt 0:00:06]} Rb3 {[%emt 0:00:06]} 21. Ra2 {[%emt 0:00:07]}
Rfb8 {[%emt 0:00:03]} 22. Rfa1 {[%emt 0:00:15]} R3b4 {[%emt 0:00:23]} 23. Ncd1
{[%emt 0:00:34]} Ne8 {[%emt 0:00:50]} 24. Ra8 {[%emt 0:00:13]} f5 {[%emt 0:00:
21]} 25. Rxb8 {[%emt 0:00:06]} Rxb8 {[%emt 0:00:01]} 26. f4 {[%emt 0:00:20]}
Ng4 {[%emt 0:00:01]} 27. Nxg4 {[%emt 0:00:07]} fxg4 {[%emt 0:00:02]} 28. Nc3 {
[%emt 0:00:02]} Nf6 {[%emt 0:00:04]} 29. Qc2 {[%emt 0:00:08]} Qe7 {[%emt 0:00:
12]} 30. Ra4 {[%emt 0:00:10]} Kh7 {[%emt 0:00:05]} 31. Kf2 {[%emt 0:00:09]} Rb4
{[%emt 0:00:10]} 32. Kg1 {[%emt 0:00:05]} Rxa4 {[%emt 0:00:08]} 33. Qxa4 {
[%emt 0:00:02]} Qb7 {[%emt 0:00:07]} 34. Qc2 {[%emt 0:00:01]} Qb4 {[%emt 0:00:
07]} 35. b3 {[%emt 0:00:07]} Nxe4 {[%emt 0:00:11]} 36. Qxe4 {[%emt 0:00:05]}
Qxc3 {[%emt 0:00:01]} 37. Bf2 {[%emt 0:00:02]} Qxb3 {[%emt 0:00:12]} 38. f5 {
[%emt 0:00:02]} Qd1+ {[%emt 0:00:05]} 39. Be1 {[%emt 0:00:00]} Qd4+ {[%emt 0:
00:11]} 40. Qxd4 {[%emt 0:00:04]} Bxd4+ {[%emt 0:00:02]} 0-1

[Event "FIDE Women World Blitz 2021"]
[Site "Warsaw"]
[Date "2021.12.30"]
[Round "16.1"]
[White "Movsesian, Julia"]
[Black "Szczotka, Klara"]
[Result "0-1"]
[ECO "B11"]
[WhiteElo "2322"]
[BlackElo "1584"]
[Annotator "NA"]
[PlyCount "56"]
[EventDate "2021.12.29"]
[EventType "swiss"]
[EventCountry "POL"]
[Tiebreak "Cut1 Buchholz"]
[SourceTitle "playchess.com"]
[Source "ChessBase"]
[SourceQuality "1"]
[TimeControl "180+2"]

1. e4 {[%emt 0:00:01]} c6 {[%emt 0:00:01]} 2. Nc3 {[%emt 0:00:06]} d5 {[%emt 0:
00:01]} 3. Nf3 {[%emt 0:00:01]} Nf6 {[%emt 0:00:09]} 4. e5 {[%emt 0:00:29]}
Nfd7 {[%emt 0:00:02]} 5. d4 {[%emt 0:00:14]} e6 {[%emt 0:00:04]} 6. Bd3 {
[%emt 0:00:01]} c5 {[%emt 0:00:03]} 7. Nb5 {[%emt 0:00:13]} cxd4 {[%emt 0:00:
13]} 8. Nbxd4 {[%emt 0:00:01]} Bc5 {[%emt 0:00:07]} 9. O-O {[%emt 0:00:07]} Qc7
{[%emt 0:00:02]} 10. Nb5 {[%emt 0:00:11]} Qb6 {[%emt 0:00:02]} 11. b4 {[%emt 0:
00:09]} Be7 {[%emt 0:00:19]} 12. Be3 {[%emt 0:00:04]} Qd8 {[%emt 0:00:00]} 13.
c4 {[%emt 0:00:11]} a6 {[%emt 0:00:07]} 14. Nd6+ {[%emt 0:00:05]} Bxd6 {
[%emt 0:00:02]} 15. exd6 {[%emt 0:00:00]} dxc4 {[%emt 0:00:09]} 16. Bxc4 {
[%emt 0:00:02]} Nc6 {[%emt 0:00:01]} 17. Rb1 {[%emt 0:00:09]} O-O {[%emt 0:00:
03]} 18. Qc2 {[%emt 0:00:05]} Nde5 {[%emt 0:00:03]} 19. Nxe5 {[%emt 0:00:04]}
Nxe5 {[%emt 0:00:01]} 20. Rfd1 {[%emt 0:00:01]} Nxc4 {[%emt 0:00:02]} 21. Qxc4
{[%emt 0:00:01]} Bd7 {[%emt 0:00:01]} 22. Bb6 {[%emt 0:00:01]} Qxb6 {[%emt 0:
00:04]} 23. a4 {[%emt 0:00:04]} Rac8 {[%emt 0:00:04]} 24. Qh4 {[%emt 0:00:01]}
Bxa4 {[%emt 0:00:16]} 25. Rd2 {[%emt 0:00:08]} Rcd8 {[%emt 0:00:06]} 26. Qf4 {
[%emt 0:00:03]} Bc6 {[%emt 0:00:00]} 27. h4 {[%emt 0:00:01]} Bd5 {[%emt 0:00:
01]} 28. h5 {[%emt 0:00:01]} Qxd6 {[%emt 0:00:03]} 0-1